[Event "Titled Tuesday Blitz August 08 Late 2023"]
[White "Ozen, Deniz"]
[Black "Kleiman, Jake"]
[WhiteFideId "6349196"]
[BlackFideId "2020041"]
[WhiteElo "2843"]
[BlackElo "2637"]
[Result "1-0"]
[Round "4"]
[TimeControl "180+1"]
[Date "2023.08.08"]
[WhiteClock "0:01:58"]
[BlackClock "0:00:59"]
[Board "24"]

1. e4 {[%clk 0:03:00]}  e5 {[%clk 0:03:00]} 2. Nf3 {[%clk 0:03:00]}  Nc6 {[%clk 0:03:00]} 3. Nc3 {[%clk 0:03:01]}  Nf6 {[%clk 0:03:00]} 4. a3 {[%clk 0:03:02]}  Bc5 {[%clk 0:02:58]} 5. Nxe5 {[%clk 0:03:01]}  Nxe5 {[%clk 0:02:48]} 6. d4 {[%clk 0:03:01]}  Bd6 {[%clk 0:02:48]} 7. dxe5 {[%clk 0:03:02]}  Bxe5 {[%clk 0:02:49]} 8. Nb5 {[%clk 0:03:03]}  a6 {[%clk 0:02:42]} 9. f4 {[%clk 0:03:03]}  axb5 {[%clk 0:02:18]} 10. fxe5 {[%clk 0:03:02]}  Ng8 {[%clk 0:02:10]} 11. Qg4 {[%clk 0:03:02]}  Kf8 {[%clk 0:02:06]} 12. Qg3 {[%clk 0:02:52]}  b4 {[%clk 0:01:58]} 13. Bc4 {[%clk 0:02:48]}  f6 {[%clk 0:01:41]} 14. O-O {[%clk 0:02:45]}  d6 {[%clk 0:01:36]} 15. exf6 {[%clk 0:02:27]}  Nxf6 {[%clk 0:01:31]} 16. Bg5 {[%clk 0:02:27]}  Ra5 {[%clk 0:01:24]} 17. Rxf6+ {[%clk 0:02:15]}  gxf6 {[%clk 0:01:22]} 18. Bh6+ {[%clk 0:02:15]}  Ke8 {[%clk 0:01:21]} 19. Qg7 {[%clk 0:02:15]}  Qe7 {[%clk 0:01:10]} 20. Qxh8+ {[%clk 0:02:14]}  Kd7 {[%clk 0:00:59]} 21. Qg7 {[%clk 0:01:58]} 1-0


[Site "https://www.chess.com"]

[Event "Titled Tuesday Blitz August 08 Late 2023"]
[White "Gadimbayli, Abdulla"]
[Black "Bilan, Danila"]
[WhiteFideId "13404938"]
[BlackFideId "24161918"]
[WhiteElo "2835"]
[BlackElo "2582"]
[Result "1-0"]
[Round "4"]
[TimeControl "180+1"]
[Date "2023.08.08"]
[WhiteClock "0:00:41"]
[BlackClock "0:00:04"]
[Board "25"]

1. e4 {[%clk 0:03:00]}  c6 {[%clk 0:02:59]} 2. Nf3 {[%clk 0:03:00]}  d5 {[%clk 0:03:00]} 3. exd5 {[%clk 0:03:01]}  cxd5 {[%clk 0:03:01]} 4. Ne5 {[%clk 0:03:02]}  Nc6 {[%clk 0:02:58]} 5. d4 {[%clk 0:03:02]}  Nf6 {[%clk 0:02:55]} 6. c3 {[%clk 0:03:02]}  Bf5 {[%clk 0:02:46]} 7. Nd2 {[%clk 0:02:56]}  e6 {[%clk 0:02:44]} 8. Bb5 {[%clk 0:02:55]}  Qb6 {[%clk 0:02:44]} 9. Bxc6+ {[%clk 0:02:38]}  bxc6 {[%clk 0:02:42]} 10. g4 {[%clk 0:02:39]}  Be4 {[%clk 0:02:34]} 11. f3 {[%clk 0:02:39]}  Bg6 {[%clk 0:02:34]} 12. h4 {[%clk 0:02:39]}  h5 {[%clk 0:02:17]} 13. Nxg6 {[%clk 0:02:38]}  fxg6 {[%clk 0:02:18]} 14. Qe2 {[%clk 0:02:15]}  Kf7 {[%clk 0:02:13]} 15. g5 {[%clk 0:02:09]}  Ng8 {[%clk 0:02:07]} 16. f4 {[%clk 0:02:10]}  Bd6 {[%clk 0:02:04]} 17. Nf3 {[%clk 0:01:49]}  Ne7 {[%clk 0:02:02]} 18. Be3 {[%clk 0:01:49]}  Nf5 {[%clk 0:02:00]} 19. O-O {[%clk 0:01:49]}  Ng3 {[%clk 0:01:53]} 20. Qd3 {[%clk 0:01:45]}  Qb5 {[%clk 0:00:45]} 21. Qc2 {[%clk 0:01:03]}  Rab8 {[%clk 0:00:41]} 22. Rf2 {[%clk 0:01:01]}  Nf5 {[%clk 0:00:35]} 23. Re1 {[%clk 0:01:01]}  Rhe8 {[%clk 0:00:35]} 24. Bc1 {[%clk 0:01:00]}  c5 {[%clk 0:00:31]} 25. Be3 {[%clk 0:00:48]}  Rbc8 {[%clk 0:00:29]} 26. Kg2 {[%clk 0:00:47]}  Kg8 {[%clk 0:00:21]} 27. Rfe2 {[%clk 0:00:44]}  Kf7 {[%clk 0:00:14]} 28. dxc5 {[%clk 0:00:41]}  Bxc5 {[%clk 0:00:12]} 29. Bxc5 {[%clk 0:00:42]}  Qxc5 {[%clk 0:00:10]} 30. Kh3 {[%clk 0:00:41]}  Qc4 {[%clk 0:00:04]} 31. Ne5+ {[%clk 0:00:41]} 1-0


[Site "https://www.chess.com"]

[Event "Titled Tuesday Blitz August 08 Late 2023"]
[White "Talibov, Shiroghlan"]
[Black "Pert, Richard G"]
[WhiteFideId "13429078"]
[BlackFideId "404748"]
[WhiteElo "2824"]
[BlackElo "2594"]
[Result "1-0"]
[Round "4"]
[TimeControl "180+1"]
[Date "2023.08.08"]
[WhiteClock "0:01:10"]
[BlackClock "0:00:59"]
[Board "26"]

1. c4 {[%clk 0:03:00]}  e5 {[%clk 0:02:58]} 2. g3 {[%clk 0:02:59]}  Nc6 {[%clk 0:02:53]} 3. Bg2 {[%clk 0:02:56]}  f5 {[%clk 0:02:48]} 4. d3 {[%clk 0:02:48]}  Nf6 {[%clk 0:02:48]} 5. Nc3 {[%clk 0:02:48]}  Bb4 {[%clk 0:02:47]} 6. Bg5 {[%clk 0:02:45]}  O-O {[%clk 0:02:37]} 7. e3 {[%clk 0:02:36]}  Bxc3+ {[%clk 0:02:31]} 8. bxc3 {[%clk 0:02:35]}  d6 {[%clk 0:02:31]} 9. Ne2 {[%clk 0:02:32]}  Qe8 {[%clk 0:02:30]} 10. Bxf6 {[%clk 0:02:28]}  Rxf6 {[%clk 0:02:30]} 11. O-O {[%clk 0:02:25]}  Kh8 {[%clk 0:02:27]} 12. Qd2 {[%clk 0:02:24]}  e4 {[%clk 0:02:10]} 13. d4 {[%clk 0:02:16]}  b6 {[%clk 0:02:06]} 14. f3 {[%clk 0:02:16]}  exf3 {[%clk 0:02:02]} 15. Bxf3 {[%clk 0:02:15]}  Bb7 {[%clk 0:01:59]} 16. Nf4 {[%clk 0:02:14]}  Na5 {[%clk 0:01:46]} 17. Bxb7 {[%clk 0:02:09]}  Nxb7 {[%clk 0:01:47]} 18. Nd5 {[%clk 0:02:10]}  Rf7 {[%clk 0:01:47]} 19. Qd3 {[%clk 0:02:10]}  c6 {[%clk 0:01:42]} 20. Nf4 {[%clk 0:02:00]}  Na5 {[%clk 0:01:41]} 21. Rae1 {[%clk 0:01:55]}  Qd7 {[%clk 0:01:38]} 22. d5 {[%clk 0:01:47]}  c5 {[%clk 0:01:35]} 23. Ne6 {[%clk 0:01:47]}  g6 {[%clk 0:01:31]} 24. e4 {[%clk 0:01:45]}  Qa4 {[%clk 0:01:19]} 25. exf5 {[%clk 0:01:41]}  Qxc4 {[%clk 0:01:19]} 26. Qd2 {[%clk 0:01:32]}  gxf5 {[%clk 0:01:15]} 27. Ng5 {[%clk 0:01:33]}  Rg7 {[%clk 0:01:09]} 28. Rxf5 {[%clk 0:01:31]}  Qg4 {[%clk 0:01:04]} 29. Ref1 {[%clk 0:01:27]}  Nc4 {[%clk 0:01:00]} 30. Rf8+ {[%clk 0:01:08]}  Rxf8 {[%clk 0:00:59]} 31. Rxf8+ {[%clk 0:01:08]}  Rg8 {[%clk 0:00:59]} 32. Nf7+ {[%clk 0:01:09]}  Kg7 {[%clk 0:00:59]} 33. Qh6# {[%clk 0:01:10]} 1-0


[Site "https://www.chess.com"]

[Event "Titled Tuesday Blitz August 08 Late 2023"]
[White "Moral Garcia, Serafin"]
[Black "Guseinov, Gadir"]
[WhiteFideId "2201925"]
[BlackFideId "13401378"]
[WhiteElo "2571"]
[BlackElo "2798"]
[Result "0-1"]
[Round "4"]
[TimeControl "180+1"]
[Date "2023.08.08"]
[WhiteClock "0:00:00"]
[BlackClock "0:01:11"]
[Board "27"]

1. e4 {[%clk 0:03:00]}  c5 {[%clk 0:03:00]} 2. Nf3 {[%clk 0:03:00]}  g6 {[%clk 0:03:00]} 3. d4 {[%clk 0:03:00]}  cxd4 {[%clk 0:03:01]} 4. Qxd4 {[%clk 0:03:00]}  Nf6 {[%clk 0:03:01]} 5. Nc3 {[%clk 0:03:00]}  Nc6 {[%clk 0:03:01]} 6. Qa4 {[%clk 0:03:01]}  d6 {[%clk 0:03:02]} 7. e5 {[%clk 0:03:00]}  dxe5 {[%clk 0:03:03]} 8. Nxe5 {[%clk 0:03:01]}  Bd7 {[%clk 0:03:03]} 9. Nxd7 {[%clk 0:03:00]}  Qxd7 {[%clk 0:03:04]} 10. Be3 {[%clk 0:02:50]}  Bg7 {[%clk 0:03:04]} 11. Rd1 {[%clk 0:02:27]}  Qc8 {[%clk 0:03:03]} 12. Be2 {[%clk 0:02:24]}  O-O {[%clk 0:03:04]} 13. O-O {[%clk 0:02:19]}  e6 {[%clk 0:03:04]} 14. Rfe1 {[%clk 0:02:10]}  Qc7 {[%clk 0:02:58]} 15. Nb5 {[%clk 0:02:07]}  Qe7 {[%clk 0:02:57]} 16. Nd6 {[%clk 0:01:58]}  Nd5 {[%clk 0:02:51]} 17. Bc5 {[%clk 0:01:58]}  Qg5 {[%clk 0:02:51]} 18. Nxb7 {[%clk 0:01:49]}  Rfc8 {[%clk 0:02:48]} 19. h4 {[%clk 0:01:38]}  Qf6 {[%clk 0:02:42]} 20. Nd6 {[%clk 0:01:35]}  Rc7 {[%clk 0:02:42]} 21. c3 {[%clk 0:01:25]}  h5 {[%clk 0:02:35]} 22. Rd3 {[%clk 0:01:13]}  Ne5 {[%clk 0:02:35]} 23. Ne8 {[%clk 0:01:03]}  Qd8 {[%clk 0:02:10]} 24. Rxd5 {[%clk 0:00:54]}  Qxe8 {[%clk 0:02:10]} 25. Bb5 {[%clk 0:00:36]}  Qc8 {[%clk 0:02:09]} 26. Ba6 {[%clk 0:00:27]}  Qe8 {[%clk 0:02:04]} 27. Bb5 {[%clk 0:00:24]}  Qc8 {[%clk 0:01:33]} 28. Ba6 {[%clk 0:00:23]}  Qb8 {[%clk 0:01:34]} 29. Rdxe5 {[%clk 0:00:21]}  Bxe5 {[%clk 0:01:35]} 30. Rxe5 {[%clk 0:00:21]}  Qxb2 {[%clk 0:01:35]} 31. Bd4 {[%clk 0:00:13]}  Qc1+ {[%clk 0:01:34]} 32. Kh2 {[%clk 0:00:08]}  Rd8 {[%clk 0:01:30]} 33. g3 {[%clk 0:00:04]}  Qd2 {[%clk 0:01:16]} 34. Qa5 {[%clk 0:00:03]}  Rxd4 {[%clk 0:01:13]} 35. Qxc7 {[%clk 0:00:03]}  Qxf2+ {[%clk 0:01:13]} 36. Kh3 {[%clk 0:00:02]}  Rd2 {[%clk 0:01:13]} 37. Re2 {[%clk 0:00:02]}  Qf1+ {[%clk 0:01:10]} 38. Kh2 {[%clk 0:00:01]}  Rxe2+ {[%clk 0:01:10]} 39. Bxe2 {[%clk 0:00:01]}  Qxe2+ {[%clk 0:01:11]} 40. Kh3 {[%clk 0:00:01]}  Qxa2 {[%clk 0:01:11]} 41. Qd8+ {[%clk 0:00:00]}  Kh7 {[%clk 0:01:11]} 0-1


[Site "https://www.chess.com"]

[Event "Titled Tuesday Blitz August 08 Late 2023"]
[White "Papayan, Oleg"]
[Black "Kilic, Eray"]
[WhiteFideId "4193911"]
[BlackFideId "44517173"]
[WhiteElo "2530"]
[BlackElo "2775"]
[Result "1-0"]
[Round "4"]
[TimeControl "180+1"]
[Date "2023.08.08"]
[WhiteClock "0:00:16"]
[BlackClock "0:01:32"]
[Board "28"]

1. e4 {[%clk 0:03:00]}  e5 {[%clk 0:03:00]} 2. Nf3 {[%clk 0:03:00]}  d5 {[%clk 0:03:01]} 3. exd5 {[%clk 0:03:00]}  e4 {[%clk 0:03:02]} 4. Qe2 {[%clk 0:03:00]}  Nf6 {[%clk 0:03:02]} 5. d3 {[%clk 0:03:01]}  Bb4+ {[%clk 0:03:02]} 6. c3 {[%clk 0:02:56]}  O-O {[%clk 0:03:03]} 7. dxe4 {[%clk 0:02:56]}  Bc5 {[%clk 0:03:03]} 8. Bg5 {[%clk 0:02:49]}  Re8 {[%clk 0:03:03]} 9. Nbd2 {[%clk 0:02:46]}  h6 {[%clk 0:03:03]} 10. Bxf6 {[%clk 0:02:42]}  Qxf6 {[%clk 0:03:04]} 11. O-O-O {[%clk 0:02:27]}  Nd7 {[%clk 0:03:04]} 12. Nb3 {[%clk 0:02:27]}  Bb6 {[%clk 0:03:03]} 13. Qc2 {[%clk 0:02:15]}  Qf4+ {[%clk 0:03:02]} 14. Qd2 {[%clk 0:02:02]}  Qd6 {[%clk 0:02:53]} 15. Bd3 {[%clk 0:01:55]}  a5 {[%clk 0:02:53]} 16. Rhe1 {[%clk 0:01:50]}  a4 {[%clk 0:02:38]} 17. Nbd4 {[%clk 0:01:50]}  a3 {[%clk 0:02:36]} 18. b3 {[%clk 0:01:47]}  Ba5 {[%clk 0:02:34]} 19. b4 {[%clk 0:01:17]}  Bb6 {[%clk 0:02:32]} 20. Nf5 {[%clk 0:01:05]}  Qf6 {[%clk 0:02:32]} 21. e5 {[%clk 0:00:49]}  Nxe5 {[%clk 0:02:26]} 22. Nxe5 {[%clk 0:00:50]}  Bxf5 {[%clk 0:02:25]} 23. Qf4 {[%clk 0:00:27]}  Bxf2 {[%clk 0:01:59]} 24. Qxf5 {[%clk 0:00:18]}  Bxe1 {[%clk 0:01:47]} 25. Qh7+ {[%clk 0:00:17]}  Kf8 {[%clk 0:01:47]} 26. Nd7+ {[%clk 0:00:18]}  Ke7 {[%clk 0:01:47]} 27. Nxf6 {[%clk 0:00:19]}  Rh8 {[%clk 0:01:36]} 28. Qxg7 {[%clk 0:00:17]}  Bxc3 {[%clk 0:01:35]} 29. d6+ {[%clk 0:00:15]}  cxd6 {[%clk 0:01:34]} 30. Nd5+ {[%clk 0:00:15]}  Kd7 {[%clk 0:01:34]} 31. Qxc3 {[%clk 0:00:15]}  Rac8 {[%clk 0:01:32]} 32. Nb6+ {[%clk 0:00:16]} 1-0


[Site "https://www.chess.com"]

[Event "Titled Tuesday Blitz August 08 Late 2023"]
[White "Naroditsky, Daniel"]
[Black "Filipets, Egor"]
[WhiteFideId "2026961"]
[BlackFideId "13503928"]
[WhiteElo "3195"]
[BlackElo "2505"]
[Result "1-0"]
[Round "4"]
[TimeControl "180+1"]
[Date "2023.08.08"]
[WhiteClock "0:01:01"]
[BlackClock "0:00:40"]
[Board "29"]

1. e4 {[%clk 0:03:00]}  d6 {[%clk 0:02:59]} 2. d4 {[%clk 0:03:01]}  Nf6 {[%clk 0:03:00]} 3. Nc3 {[%clk 0:03:01]}  g6 {[%clk 0:03:01]} 4. Be2 {[%clk 0:03:01]}  c6 {[%clk 0:03:01]} 5. a4 {[%clk 0:03:01]}  e5 {[%clk 0:02:47]} 6. Nf3 {[%clk 0:02:42]}  Nbd7 {[%clk 0:02:42]} 7. O-O {[%clk 0:02:36]}  Bg7 {[%clk 0:02:42]} 8. h3 {[%clk 0:02:36]}  O-O {[%clk 0:02:41]} 9. dxe5 {[%clk 0:02:37]}  Nxe5 {[%clk 0:02:39]} 10. Nxe5 {[%clk 0:02:36]}  dxe5 {[%clk 0:02:40]} 11. Bc4 {[%clk 0:02:36]}  Qc7 {[%clk 0:02:37]} 12. Be3 {[%clk 0:02:35]}  Rd8 {[%clk 0:02:37]} 13. Qe2 {[%clk 0:02:36]}  b6 {[%clk 0:02:17]} 14. Rfd1 {[%clk 0:02:11]}  Bb7 {[%clk 0:02:15]} 15. Rd3 {[%clk 0:02:11]}  Rxd3 {[%clk 0:02:14]} 16. cxd3 {[%clk 0:02:11]}  a6 {[%clk 0:02:09]} 17. Rc1 {[%clk 0:02:09]}  b5 {[%clk 0:02:06]} 18. Bb3 {[%clk 0:02:07]}  Qd7 {[%clk 0:02:01]} 19. Bc5 {[%clk 0:02:04]}  Nh5 {[%clk 0:01:58]} 20. Rd1 {[%clk 0:02:02]}  Nf4 {[%clk 0:01:56]} 21. Qf3 {[%clk 0:02:03]}  Ne6 {[%clk 0:01:53]} 22. Bxe6 {[%clk 0:02:03]}  Qxe6 {[%clk 0:01:54]} 23. Qe3 {[%clk 0:01:57]}  Rd8 {[%clk 0:01:51]} 24. b4 {[%clk 0:01:56]}  Qb3 {[%clk 0:01:47]} 25. Qd2 {[%clk 0:01:47]}  Bc8 {[%clk 0:01:29]} 26. Rb1 {[%clk 0:01:44]}  Qe6 {[%clk 0:01:29]} 27. Ra1 {[%clk 0:01:45]}  Qd7 {[%clk 0:01:26]} 28. axb5 {[%clk 0:01:45]}  cxb5 {[%clk 0:01:26]} 29. Qe3 {[%clk 0:01:36]}  Bb7 {[%clk 0:01:14]} 30. Rd1 {[%clk 0:01:37]}  f5 {[%clk 0:01:11]} 31. f3 {[%clk 0:01:28]}  f4 {[%clk 0:01:07]} 32. Qf2 {[%clk 0:01:27]}  Bf8 {[%clk 0:01:06]} 33. d4 {[%clk 0:01:26]}  exd4 {[%clk 0:01:03]} 34. Bxf8 {[%clk 0:01:17]}  Kxf8 {[%clk 0:01:02]} 35. Ne2 {[%clk 0:01:18]}  d3 {[%clk 0:01:00]} 36. Nxf4 {[%clk 0:01:13]}  d2 {[%clk 0:00:57]} 37. Qh4 {[%clk 0:01:02]}  Kg7 {[%clk 0:00:40]} 38. Qxd8 {[%clk 0:01:01]} 1-0


[Site "https://www.chess.com"]

[Event "Titled Tuesday Blitz August 08 Late 2023"]
[White "Mamedov, Rauf"]
[Black "Arabidze, Meri"]
[WhiteFideId "13401653"]
[BlackFideId "13604040"]
[WhiteElo "3001"]
[BlackElo "2612"]
[Result "1-0"]
[Round "4"]
[TimeControl "180+1"]
[Date "2023.08.08"]
[WhiteClock "0:02:22"]
[BlackClock "0:01:58"]
[Board "30"]

1. e4 {[%clk 0:03:00]}  c5 {[%clk 0:03:00]} 2. Nf3 {[%clk 0:03:00]}  e6 {[%clk 0:03:00]} 3. c3 {[%clk 0:02:59]}  d5 {[%clk 0:02:59]} 4. exd5 {[%clk 0:02:58]}  exd5 {[%clk 0:03:00]} 5. d4 {[%clk 0:02:59]}  Nc6 {[%clk 0:03:00]} 6. Bb5 {[%clk 0:02:58]}  Bd6 {[%clk 0:03:01]} 7. O-O {[%clk 0:02:58]}  cxd4 {[%clk 0:03:01]} 8. cxd4 {[%clk 0:02:57]}  Ne7 {[%clk 0:02:59]} 9. h3 {[%clk 0:02:57]}  O-O {[%clk 0:02:58]} 10. Nc3 {[%clk 0:02:58]}  h6 {[%clk 0:02:57]} 11. Re1 {[%clk 0:02:56]}  Be6 {[%clk 0:02:56]} 12. Bd3 {[%clk 0:02:52]}  a6 {[%clk 0:02:53]} 13. Be3 {[%clk 0:02:50]}  Nf5 {[%clk 0:02:46]} 14. a3 {[%clk 0:02:40]}  Nxe3 {[%clk 0:02:46]} 15. Rxe3 {[%clk 0:02:39]}  Re8 {[%clk 0:02:40]} 16. Bc2 {[%clk 0:02:38]}  Bf4 {[%clk 0:02:34]} 17. Re2 {[%clk 0:02:36]}  Rc8 {[%clk 0:02:30]} 18. Qd3 {[%clk 0:02:36]}  g6 {[%clk 0:02:30]} 19. Rae1 {[%clk 0:02:35]}  h5 {[%clk 0:02:28]} 20. Rxe6 {[%clk 0:02:35]}  fxe6 {[%clk 0:02:19]} 21. Qxg6+ {[%clk 0:02:34]}  Kf8 {[%clk 0:02:20]} 22. g3 {[%clk 0:02:25]}  Bd2 {[%clk 0:02:04]} 23. Nxd2 {[%clk 0:02:22]}  Nxd4 {[%clk 0:01:58]} 24. Qh6+ {[%clk 0:02:22]} 1-0


[Site "https://www.chess.com"]

[Event "Titled Tuesday Blitz August 08 Late 2023"]
[White "Zemlyanskii, Ivan"]
[Black "Barria Santos, Jose Guilherme"]
[WhiteFideId "24249971"]
[BlackFideId "1939300"]
[WhiteElo "2877"]
[BlackElo "2581"]
[Result "1-0"]
[Round "4"]
[TimeControl "180+1"]
[Date "2023.08.08"]
[WhiteClock "0:00:20"]
[BlackClock "0:00:09"]
[Board "35"]

1. d4 {[%clk 0:03:00]}  Nf6 {[%clk 0:02:57]} 2. c4 {[%clk 0:02:59]}  e6 {[%clk 0:02:57]} 3. Bf4 {[%clk 0:03:00]}  c5 {[%clk 0:02:53]} 4. d5 {[%clk 0:03:00]}  d6 {[%clk 0:02:53]} 5. Nc3 {[%clk 0:02:58]}  e5 {[%clk 0:02:53]} 6. Bd2 {[%clk 0:02:58]}  Be7 {[%clk 0:02:47]} 7. e4 {[%clk 0:02:56]}  O-O {[%clk 0:02:47]} 8. h3 {[%clk 0:02:53]}  Nbd7 {[%clk 0:02:46]} 9. Nf3 {[%clk 0:02:51]}  a6 {[%clk 0:02:46]} 10. a4 {[%clk 0:02:51]}  Re8 {[%clk 0:02:44]} 11. g4 {[%clk 0:02:50]}  Nf8 {[%clk 0:02:44]} 12. Bd3 {[%clk 0:02:49]}  Ng6 {[%clk 0:02:43]} 13. Ne2 {[%clk 0:02:37]}  Rb8 {[%clk 0:02:36]} 14. a5 {[%clk 0:02:37]}  b5 {[%clk 0:02:28]} 15. axb6 {[%clk 0:02:38]}  Qxb6 {[%clk 0:02:28]} 16. Bc3 {[%clk 0:02:38]}  Nd7 {[%clk 0:02:25]} 17. Qd2 {[%clk 0:02:31]}  Nh4 {[%clk 0:02:22]} 18. Nxh4 {[%clk 0:02:13]}  Bxh4 {[%clk 0:02:23]} 19. Ng3 {[%clk 0:02:11]}  Qd8 {[%clk 0:02:19]} 20. Nf5 {[%clk 0:02:05]}  Bg5 {[%clk 0:02:18]} 21. Qe2 {[%clk 0:02:01]}  Nb6 {[%clk 0:02:14]} 22. Ne3 {[%clk 0:01:58]}  Bd7 {[%clk 0:02:10]} 23. b3 {[%clk 0:01:53]}  Nc8 {[%clk 0:02:04]} 24. Bc2 {[%clk 0:01:54]}  Ne7 {[%clk 0:01:58]} 25. Rxa6 {[%clk 0:01:50]}  Bc8 {[%clk 0:01:55]} 26. Ra1 {[%clk 0:01:35]}  Ng6 {[%clk 0:01:54]} 27. Ng2 {[%clk 0:01:36]}  Bd7 {[%clk 0:01:38]} 28. f3 {[%clk 0:01:31]}  Qf6 {[%clk 0:01:33]} 29. Ra7 {[%clk 0:01:11]}  Bc8 {[%clk 0:01:16]} 30. O-O {[%clk 0:00:54]}  Rb7 {[%clk 0:01:15]} 31. Rfa1 {[%clk 0:00:51]}  Rxa7 {[%clk 0:01:13]} 32. Rxa7 {[%clk 0:00:52]}  h5 {[%clk 0:01:08]} 33. Be1 {[%clk 0:00:40]}  Kh7 {[%clk 0:00:59]} 34. Qf2 {[%clk 0:00:36]}  Nf4 {[%clk 0:00:45]} 35. Nxf4 {[%clk 0:00:35]}  Bxf4 {[%clk 0:00:46]} 36. Qh4 {[%clk 0:00:29]}  Qxh4 {[%clk 0:00:32]} 37. Bxh4 {[%clk 0:00:30]}  hxg4 {[%clk 0:00:22]} 38. hxg4 {[%clk 0:00:31]}  Kg6 {[%clk 0:00:22]} 39. Kg2 {[%clk 0:00:30]}  Rh8 {[%clk 0:00:22]} 40. Bg3 {[%clk 0:00:30]}  Bxg3 {[%clk 0:00:22]} 41. Kxg3 {[%clk 0:00:30]}  Rh1 {[%clk 0:00:21]} 42. Rc7 {[%clk 0:00:28]}  Rg1+ {[%clk 0:00:16]} 43. Kf2 {[%clk 0:00:25]}  Rc1 {[%clk 0:00:17]} 44. Bd3 {[%clk 0:00:25]}  Rc3 {[%clk 0:00:16]} 45. Be2 {[%clk 0:00:24]}  Ba6 {[%clk 0:00:14]} 46. Rc6 {[%clk 0:00:23]}  Bb7 {[%clk 0:00:15]} 47. Rb6 {[%clk 0:00:23]}  Bc8 {[%clk 0:00:14]} 48. Rxd6+ {[%clk 0:00:24]}  Kg5 {[%clk 0:00:14]} 49. Rc6 {[%clk 0:00:22]}  Bd7 {[%clk 0:00:14]} 50. Rc7 {[%clk 0:00:22]}  Be8 {[%clk 0:00:15]} 51. d6 {[%clk 0:00:23]}  Rxb3 {[%clk 0:00:11]} 52. d7 {[%clk 0:00:22]}  Bxd7 {[%clk 0:00:12]} 53. Rxd7 {[%clk 0:00:23]}  f6 {[%clk 0:00:12]} 54. Rxg7+ {[%clk 0:00:21]}  Kf4 {[%clk 0:00:09]} 55. g5 {[%clk 0:00:20]} 1-0


[Site "https://www.chess.com"]

[Event "Titled Tuesday Blitz August 08 Late 2023"]
[White "Salinas Herrera, Pablo"]
[Black "Musovic, Armin"]
[WhiteFideId "3407128"]
[BlackFideId "939935"]
[WhiteElo "2846"]
[BlackElo "2575"]
[Result "0-1"]
[Round "4"]
[TimeControl "180+1"]
[Date "2023.08.08"]
[WhiteClock "0:01:13"]
[BlackClock "0:00:33"]
[Board "38"]

1. d4 {[%clk 0:03:00]}  d5 {[%clk 0:02:56]} 2. Nf3 {[%clk 0:02:58]}  Nf6 {[%clk 0:02:54]} 3. Bf4 {[%clk 0:02:59]}  c5 {[%clk 0:02:55]} 4. e3 {[%clk 0:02:59]}  Nc6 {[%clk 0:02:55]} 5. Nbd2 {[%clk 0:03:00]}  a6 {[%clk 0:02:56]} 6. dxc5 {[%clk 0:02:57]}  Bg4 {[%clk 0:02:55]} 7. h3 {[%clk 0:02:53]}  Bxf3 {[%clk 0:02:53]} 8. Nxf3 {[%clk 0:02:53]}  e6 {[%clk 0:02:51]} 9. c3 {[%clk 0:02:52]}  Bxc5 {[%clk 0:02:50]} 10. Bd3 {[%clk 0:02:52]}  O-O {[%clk 0:02:50]} 11. O-O {[%clk 0:02:52]}  h6 {[%clk 0:02:51]} 12. Rc1 {[%clk 0:02:51]}  Re8 {[%clk 0:02:51]} 13. c4 {[%clk 0:02:51]}  Ba7 {[%clk 0:02:48]} 14. cxd5 {[%clk 0:02:50]}  Nxd5 {[%clk 0:02:48]} 15. Bg3 {[%clk 0:02:48]}  Nxe3 {[%clk 0:02:45]} 16. fxe3 {[%clk 0:02:34]}  Bxe3+ {[%clk 0:02:46]} 17. Kh1 {[%clk 0:02:21]}  Bxc1 {[%clk 0:02:46]} 18. Qe2 {[%clk 0:02:22]}  Bxb2 {[%clk 0:02:39]} 19. Rd1 {[%clk 0:02:18]}  Qf6 {[%clk 0:02:08]} 20. Bh4 {[%clk 0:02:11]}  Qc3 {[%clk 0:01:59]} 21. Be1 {[%clk 0:02:11]}  Qa3 {[%clk 0:01:59]} 22. Rb1 {[%clk 0:02:05]}  Rad8 {[%clk 0:01:39]} 23. Bc2 {[%clk 0:02:00]}  Nd4 {[%clk 0:01:27]} 24. Nxd4 {[%clk 0:02:01]}  Bxd4 {[%clk 0:01:27]} 25. Rxb7 {[%clk 0:02:01]}  Qc1 {[%clk 0:01:22]} 26. Rb1 {[%clk 0:01:56]}  Qe3 {[%clk 0:01:21]} 27. Qf1 {[%clk 0:01:55]}  Rb8 {[%clk 0:01:13]} 28. Bb3 {[%clk 0:01:51]}  Be5 {[%clk 0:01:01]} 29. Bf2 {[%clk 0:01:46]}  Qf4 {[%clk 0:01:02]} 30. Qg1 {[%clk 0:01:46]}  Rec8 {[%clk 0:01:00]} 31. Be3 {[%clk 0:01:46]}  Qg3 {[%clk 0:00:59]} 32. Bf2 {[%clk 0:01:46]}  Qg6 {[%clk 0:00:59]} 33. Rf1 {[%clk 0:01:41]}  Rc3 {[%clk 0:00:55]} 34. Be1 {[%clk 0:01:40]}  Rc1 {[%clk 0:00:45]} 35. Qe3 {[%clk 0:01:38]}  Qg5 {[%clk 0:00:42]} 36. Qe2 {[%clk 0:01:36]}  Rbc8 {[%clk 0:00:38]} 37. Qf3 {[%clk 0:01:35]}  Qf4 {[%clk 0:00:35]} 38. Qxf4 {[%clk 0:01:28]}  Bxf4 {[%clk 0:00:35]} 39. Kg1 {[%clk 0:01:21]}  Be3+ {[%clk 0:00:36]} 40. Kh2 {[%clk 0:01:13]}  Bd2 {[%clk 0:00:33]} 0-1


[Site "https://www.chess.com"]